Cogmind - Beta 16 @@@ ROGUE MODE // 2025.10.23 @ 22:10:50 Player: Omega Result: Destroyed by H-55 Commando with Gauss Rifle Performance ------------- Evolutions (2) 1000 Regions Visited (4) 800 Robots Destroyed (38) 190 Value Destroyed (1013) 1013 Prototype IDs (2) 40 Alien Tech Used (0) 0 Bonus (0) 0 TOTAL SCORE: 3043 Bonus ------- None Cogmind --------- Core Integrity 0/550 Matter 100/300 Energy 133/275 System Corruption 0% Temperature Cool (0) Movement Core (150) Ox2 Location -8/Storage Parts ------- > --- POWER (2) -------- Deuterium Engine > --- PROPULSION (4) --- (None) > --- UTILITY (3) ------ Terrain Scan Processor > --- WEAPON (2) ------- (None) > --- INVENTORY (5) ---- Improved Heat Sink Huge Storage Unit Peak State ------------ > --- POWER ------------ Improved Ion Engine Light Nuclear Core > --- PROPULSION ------- Aluminum Leg Aluminum Leg > --- UTILITY ---------- Improved Terrain Scanner Terrain Scan Processor Hardlight Generator > --- WEAPON ----------- High-powered Shotgun High-powered Shotgun > --- INVENTORY -------- Compact Battery Hardened Light Armor Plating High-powered Shotgun High-powered Shotgun [Rating: 22] Favorites ----------- Power Improved Ion Engine Engine Improved Ion Engine Power Core Light Nuclear Core Propulsion Aluminum Leg Treads Light Treads Leg Aluminum Leg Utility Terrain Scan Processor Device Improved Terrain Scanner Storage Small Storage Unit Processor Terrain Scan Processor Protection Hardened Light Armor Plating Weapon High-powered Shotgun Energy Gun Medium Laser Ballistic Gun High-powered Shotgun Ballistic Cannon Improved Light Cannon Special Melee Weapon Datajack Build | -11 -10 -9 -8 -8 ------- Run | Yrd Mat Mat Mat Sto Slots Evolved 4 | . . 2 2 . Power 1 | . . 1 . . Propulsion 2 | . . . 2 . Utility 1 | . . 1 . . Weapon . | . . . . . Parts Attached 43 | 6 9 12 12 4 Power 8 | 1 1 3 2 1 Engine 7 | 1 1 3 1 1 Core 1 | . . . 1 . Reactor . | . . . . . Propulsion 10 | 2 2 2 4 . Treads 2 | 2 . . . . Leg 8 | . 2 2 4 . Wheel . | . . . . . Hover . | . . . . . Flight . | . . . . . Utility 11 | 1 3 4 2 1 Device 3 | . 1 1 1 . Storage 4 | 1 1 . 1 1 Processor 2 | . . 2 . . Hackware . | . . . . . Protection 2 | . 1 1 . . Artifact . | . . . . . Weapon 14 | 2 3 3 4 2 Energy Gun 4 | . . 2 . 2 Energy Cannon . | . . . . . Ballistic Gun 6 | 2 . . 4 . Ballistic Cannon 3 | . 3 . . . Launcher . | . . . . . Special Weapon . | . . . . . Impact Weapon . | . . . . . Slashing Weapon . | . . . . . Piercing Weapon . | . . . . . Special Melee Weapon 1 | . . 1 . . Unidentified Prototypes . | . . . . . Parts Lost 26 | . 1 9 11 5 Power 4 | . . 1 3 . Propulsion 7 | . . 2 5 . Utility 5 | . . 2 1 2 Weapon 10 | . 1 4 2 3 Highest Loss Streak 8 | . 1 8 6 5 To Critical Strikes . | . . . . . Average Backups 4 | 1 4 4 4 3 Power . | . . . . . Propulsion . | . 2 . . . Utility 1 | . . . 1 2 Weapon 2 | . 2 2 2 1 Tool/Special . | . . . . . Unused Backups 5 | . 3 1 . 1 Power . | . . . . . Propulsion 1 | . . 1 . . Utility 1 | . . . . 1 Weapon 3 | . 3 . . . Tool/Special . | . . . . . Average Slot Usage (%) 79 | . 95 83 79 33 Engine 11 | . 13 15 8 . Core 1 | . . . 5 . Treads 4 | . 21 . . . Leg 15 | . 6 19 22 4 Device 7 | . 3 8 13 . Storage 5 | . 19 . 2 8 Processor 7 | . . 10 9 9 Protection 4 | . 2 9 2 . Energy Gun 3 | . . 5 3 7 Ballistic Gun 8 | . 20 . 12 3 Ballistic Cannon 5 | . 6 10 . . Special Melee Weapon 1 | . . 3 . . Peak Build Rating 22 | 6 11 16 22 10 Average Rating 12 | 3 7 12 19 8 On Entrance 8 | . 6 11 15 9 Avg Prop Armor Cover (%) . | . . . . . Naked Turns . | . . . . . Heaviest Build 25 | 12 21 23 25 9 Greatest Support 40 | 40 40 20 40 10 Greatest Overweight (x) 6 | . 1 3 6 2 Average Overweight (x) . | . . 1 . . Largest Inventory Capacity 25 | 8 8 5 5 25 Average Capacity 5 | 6 7 5 5 5 Most Carried 8 | 5 8 5 5 5 Average Carried 4 | 2 5 4 4 3 Final Capacity 8 | 8 5 5 5 5 Final Carried 5 | 3 5 5 3 2 Class Distribution -------------------- 59% | Mutant 40% | Scavenger-Mutant Dominant Class ---------------- Mutant | -10/Materials Mutant | -9/Materials Scavenger-Mutant | -8/Materials Mutant | -8/Storage Resources | -11 -10 -9 -8 -8 ----------- Run | Yrd Mat Mat Mat Sto Matter Collected 902 | 238 144 163 312 45 Remotely . | . . . . . Salvage Created 1100 | . 242 218 444 196 Parts 72 | . 15 18 29 10 Haulers Intercepted 1 | . 1 . . . Recyclers Shooed . | . . . . . Parts Field Recycled . | . . . . . Retrieved Matter . | . . . . . Parts Self-Destructed . | . . . . . Prevented . | . . . . . Parts Restored . | . . . . . Kills | -11 -10 -9 -8 -8 ------- Run | Yrd Mat Mat Mat Sto Combat Hostiles Destroyed 31 | . 6 8 15 2 Guns 25 | . 6 2 15 2 Cannons 6 | . . 6 . . Classes Destroyed 8 | . 5 2 . 1 Worker 2 | . 1 . 1 . Hauler 1 | . 1 . . . Recycler 1 | . . . . 1 Watcher 3 | . 1 1 1 . Swarmer 13 | . 3 3 7 . Grunt 12 | . 3 2 6 1 Duelist 2 | . . 1 1 . Sentry 4 | . . 2 1 1 Best Kill Streak 8 | . 5 5 8 3 Combat Bots Only 7 | . 4 5 7 2 Max Kills in Single Turn 2 | . 1 1 2 1 Gunslinging 1 | . . . 1 . Exploded . | . . . . . Melee . | . . . . . Uniques/NPCs Destroyed . | . . . . . Combat | -11 -10 -9 -8 -8 -------- Run | Yrd Mat Mat Mat Sto Hostile Shots Fired 416 | . 65 135 152 64 Missed 107 | . 18 26 48 15 Hits 309 | . 47 109 104 49 Melee 10 | . . 2 8 . Projectile 299 | . 47 107 96 49 AOE 1 | . . 1 . . Critical Strikes 9 | . . 1 7 1 Damage Taken 3821 | . 488 1269 1311 753 Core 958 | . 77 320 201 360 Absorbed by Shields 224 | . . . 224 . Regen/Repaired (Parts) 6 | . . 6 . . Core Remaining (%) 63 | 100 69 20 . . Volleys Fired 119 | . 29 30 45 15 Largest 2 | . 2 2 2 2 Hottest 130 | . 40 66 75 130 Shots Fired 209 | . 50 47 86 26 Gun 175 | . 50 13 86 26 Cannon 34 | . . 34 . . Launcher . | . . . . . Special . | . . . . . Kinetic 154 | . 50 34 69 1 Thermal 55 | . . 13 17 25 Explosive . | . . . . . Electromagnetic . | . . . . . Robot Hit Streak 7 | . 7 6 6 6 Robot Miss Streak 8 | . 4 4 8 6 Penetration Max . | . . . . . Secondary Targets 6 | . 2 . 4 . Max Gunslinging Chain 1 | . 1 . 1 . Shots Hit Robots 139 | . 33 35 54 17 Core Hits 64 | . 14 12 31 7 Critical Kills 1 | . . . 1 . Critical Parts Destroyed 3 | . 2 . 1 . Critical Strikes 8 | . 2 3 3 . Burn 2 | . . 1 1 . Destroy 4 | . 2 . 2 . Blast 2 | . . 2 . . Melee Attacks 6 | . . 6 . . Impact . | . . . . . Slashing . | . . . . . Piercing . | . . . . . Sneak Attacks 6 | . . 6 . . Combat Hostiles . | . . . . . Follow-up Attacks . | . . . . . Damage Inflicted 2337 | . 434 571 1051 281 Guns 1875 | . 434 109 1051 281 Cannons 462 | . . 462 . . Explosions . | . . . . . Melee . | . . . . . Ramming . | . . . . . Kinetic 1859 | . 434 462 952 11 Thermal 478 | . . 109 99 270 Explosive . | . . . . . Electromagnetic . | . . . . . Impact . | . . . . . Slashing . | . . . . . Piercing . | . . . . . Highest Corruption 1 | . . 1 . . Average Corruption 1 | . . 1 . . Corruption Purged . | . . . . . Corruption Blocked . | . . . . . Effects 4 | . . 4 . . Matter Fused 2 | . . 2 . . Data Loss (major) 2 | . . 2 . . Overload Shots . | . . . . . Overflow Damage 3 | . . 3 . . Projectiles 3 | . . 3 . . Explosions . | . . . . . Melee . | . . . . . Knockbacks 5 | . . 5 . . Impact . | . . . . . Kinetic 5 | . . 5 . . Secondary . | . . . . . Self-Inflicted Damage . | . . . . . Shots . | . . . . . Rammed . | . . . . . Targets Rammed . | . . . . . Kicked . | . . . . . Crushed . | . . . . . Highest Temperature 339 | . 2 224 335 339 Average Temperature 120 | . 2 89 139 155 Received Heat Transfer 1228 | . 159 384 496 189 Siege Activations . | . . . . . Martial Activations . | . . . . . Shielding Activations . | . . . . . Robots Disrupted . | . . . . . Combat Hostiles . | . . . . . Robots Corrupted . | . . . . . Combat Hostiles . | . . . . . Parts Fried . | . . . . . Impact Corruptions . | . . . . . Robots Melted . | . . . . . Combat Hostiles . | . . . . . Parts Melted 3 | . . 2 . 1 Heat Transferred 1406 | . . 407 370 629 Parts Sabotaged . | . . . . . Parts Stolen . | . . . . . Parts Stripped . | . . . . . Power Chain Reactions . | . . . . . Alert | -11 -10 -9 -8 -8 ------- Run | Yrd Mat Mat Mat Sto Maximum Alert Level . | . . . . . Low Security (%) 100 | 100 100 100 100 100 Level 1 . | . . . . . Level 2 . | . . . . . Level 3 . | . . . . . Level 4 . | . . . . . Level 5 . | . . . . . High Security . | . . . . . Max Security . | . . . . . Peak Influence 172 | . 99 88 172 55 Initial 55 | . . 20 . 55 Average 33 | . 39 18 59 31 Influence Increases 889 | . 180 246 408 55 Destroy 0b10 Robot/C 620 | . 120 160 300 40 Destroy 0b10 Robot/NC 35 | . 15 5 10 5 Destroy Leader 128 | . 34 32 52 10 Successful Hack 11 | . 11 . . . Disable Machine 45 | . . 15 30 . Destroy Structure 5 | . . 4 1 . Lose Combat Pursuer 45 | . . 30 15 . Influence Decreases 889 | . 130 296 276 187 Entered New Map 107 | . . 30 . 77 Time Decay 542 | . 120 186 166 70 Lost Part 240 | . 10 80 110 40 Squads Dispatched 4 | . 1 1 2 . Investigation 1 | . 1 . . . Extermination . | . . . . . Reinforcement 3 | . . 1 2 . Assault . | . . . . . Garrison . | . . . . . Intercept . | . . . . . Searches Triggered . | . . . . . Construction Impeded . | . . . . . Haulers Reinforced . | . . . . . Active Scanning Responses . | . . . . . Cargo Convoy Interrupts . | . . . . . Stealth | -11 -10 -9 -8 -8 --------- Run | Yrd Mat Mat Mat Sto Distress Signals 3 | . 1 1 1 . Communications Jammed . | . . . . . Distress Signals . | . . . . . Times Spotted 55 | . 8 16 24 7 Peak Tracking Total 12 | . 4 12 8 5 Tactical Retreats 3 | . . 2 1 . Traps | -11 -10 -9 -8 -8 ------- Run | Yrd Mat Mat Mat Sto Traps Triggered 3 | . 1 1 . 1 Indirectly . | . . . . . Trap Hack Attempts . | . . . . . Triggered . | . . . . . Disarmed . | . . . . . Reprogrammed . | . . . . . Reused . | . . . . . Traps Extracted . | . . . . . Installed . | . . . . . Triggered . | . . . . . Machines | -11 -10 -9 -8 -8 ---------- Run | Yrd Mat Mat Mat Sto Machines Disabled 3 | . . 1 2 . Max in Single Turn 2 | . . 1 2 . Machines Repaired . | . . . . . Machines Dismantled . | . . . . . Machines Sabotaged . | . . . . . Overloaded Fab Kills . | . . . . . Hacking | -11 -10 -9 -8 -8 --------- Run | Yrd Mat Mat Mat Sto Machines Accessed 8 | . 3 4 . 1 Terminals 5 | . 3 2 . . Fabricators . | . . . . . Repair Stations 1 | . . 1 . . Recycling Units 2 | . . 1 . 1 Scanalyzers . | . . . . . Garrison Access . | . . . . . Total Hacks 20 | . 7 9 . 4 Successful 14 | . 6 5 . 3 Failed 6 | . 1 4 . 1 Catastrophic . | . . . . . Database Lockouts . | . . . . . Manual . | . . . . . Terminals 13 | . 7 6 . . Fabricators . | . . . . . Repair Stations 2 | . . 2 . . Recycling Units 5 | . . 1 . 4 Scanalyzers . | . . . . . Garrison Access . | . . . . . Terminal Hacks 8 | . 6 2 . . Record 2 | . 2 . . . Robot Analysis 1 | . . 1 . . Prototype ID Bank 1 | . . 1 . . Alert Level 1 | . 1 . . . Dispatch Records 1 | . 1 . . . Maintenance Status 1 | . 1 . . . Recall Investigation 1 | . 1 . . . Fabricator Hacks . | . . . . . Repair Station Hacks 2 | . . 2 . . Scan Component 1 | . . 1 . . Repair 1 | . . 1 . . Recycling Unit Hacks 4 | . . 1 . 3 Recycle Component 1 | . . . . 1 Process 1 | . . . . 1 Report Inventory 2 | . . 1 . 1 Scanalyzer . | . . . . . Garrison Access Hacks . | . . . . . Unauthorized Hacks . | . . . . . Terminals . | . . . . . Fabricators . | . . . . . Repair Stations . | . . . . . Recycling Units . | . . . . . Scanalyzers . | . . . . . Garrison Access . | . . . . . Data Cores Recovered . | . . . . . Used . | . . . . . Hacking Detections 6 | . 3 2 . 1 Full Trace Events 1 | . . . . 1 Feedback Events . | . . . . . Feedback Blocked . | . . . . . Robot Schematics Acquired . | . . . . . Robots Built . | . . . . . Authchips . | . . . . . Time . | . . . . . Total Robot Build Rating . | . . . . . Part Schematics Acquired . | . . . . . Parts Built . | . . . . . Authchips . | . . . . . Time . | . . . . . Total Part Build Rating . | . . . . . Part Studies Acquired . | . . . . . Parts Repaired 1 | . . 1 . . Time 26 | . . 26 . . Parts Recycled 1 | . . . . 1 Recycled Matter 14 | . . . . 14 Retrieved Matter . | . . . . . Retrieved Components . | . . . . . Parts Scanalyzed . | . . . . . Part Schematics Acquired . | . . . . . Parts Damaged . | . . . . . Bothacking | -11 -10 -9 -8 -8 ------------ Run | Yrd Mat Mat Mat Sto Used RIF Installer . | . . . . . Robots Hacked 2 | . . 2 . . Non-combat 2 | . . 2 . . Combat . | . . . . . Robot Hacks Applied 3 | . . 3 . . parse_system 1 | . . 1 . . no_distress 2 | . . 2 . . Relay Couplers Released . | . . . . . Fabnet Peak Effective % . | . . . . . Robots Rewired . | . . . . . Allies Hacked . | . . . . . Hacks Repelled . | . . . . . Allies | -11 -10 -9 -8 -8 -------- Run | Yrd Mat Mat Mat Sto Total Allies . | . . . . . Largest Group . | . . . . . Highest-Rated Group . | . . . . . Highest-Rated Ally . | . . . . . Total Orders . | . . . . . Ally Attacks . | . . . . . Total Damage . | . . . . . Kills . | . . . . . Allies Corrupted . | . . . . . Allies Melted . | . . . . . Intel | -11 -10 -9 -8 -8 ------- Run | Yrd Mat Mat Mat Sto Active Infowar (turns) 973 | . 79 467 427 . Sensors 366 | . 79 287 . . Terrain 607 | . . 180 427 . Robot Analysis Total 1 | . . 1 . . Derelict Logs Recovered . | . . . . . Drone Launches . | . . . . . Drone Recoveries . | . . . . . Exploration | -11 -10 -9 -8 -8 ------------- Run | Yrd Mat Mat Mat Sto Turns Passed 1623 | 85 331 608 439 160 Spaces Moved 745 | 40 153 264 195 93 Core 68 | 3 . 20 3 42 Treads 138 | 37 101 . . . Legs 539 | . 52 244 192 51 Wheels . | . . . . . Hover . | . . . . . Flight . | . . . . . Fastest Speed 50 | 50 120 50 120 50 Average Speed 158 | 151 148 188 146 117 Slowest Speed 350 | 160 190 200 350 150 Overloaded Moves . | . . . . . Propulsion Burnouts . | . . . . . Robots Hopped . | . . . . . Potential Cave-ins . | . . . . . Cave-ins Triggered . | . . . . . Exploration Rate (%) 19 | 4 24 24 23 23 Regions Visited 4 Branch Regions 1 Pre-discovered Areas . | . . . . . Known Exits Taken . | . . . . . Unknown Exits Taken 4 | 1 1 1 1 . Scrap Searched . | . . . . . Spaces Dug . | . . . . . Terrain Destroyed 2 | . . 2 . . Melee . | . . . . . Projectile 2 | . . 2 . . AOE . | . . . . . Terrain Rammed . | . . . . . Walls Destroyed . | . . . . . Machines Disabled . | . . . . . Actions | -11 -10 -9 -8 -8 --------- Run | Yrd Mat Mat Mat Sto Total 977 | 64 209 325 260 119 Wait 10 | 10 . . . . Move 741 | 39 152 263 194 93 Hop . | . . . . . Pick Up 41 | 9 11 11 7 3 Fast Attach 7 | . 3 2 2 . Attach 31 | 6 4 9 7 5 Detach 2 | . . . . 2 Swap 7 | . 2 1 3 1 Drop 13 | . 8 3 2 . Fire 119 | . 29 30 45 15 Melee 6 | . . 6 . . Ram . | . . . . . Kick . | . . . . . Crush . | . . . . . Escape Stasis . | . . . . . Rewire . | . . . . . Trap . | . . . . . Miscellaneous . | . . . . . Route ------- -11/Scrapyard -10/Materials (discovered 2 exits: *Mat / [*Min]) -9/Materials -8/Materials (discovered 2 exits: [*Fac] / *Sto) -8/Storage History --------- Turn | Location | Event 44 | -11/Scrapyard | Discovered new exit (range 15) 86 | -11/Scrapyard | Entered Materials 87 | -10/Materials | Met a group of wandering Federalists 209 | -10/Materials | Discovered new exit (range 8) 324 | -10/Materials | Build established: Mutant 400 | -10/Materials | Discovered new exit (range 5) 417 | -10/Materials | Entered another Materials area 417 | -9/Materials | Evolved 2 slots: Power x1, Utility x1 494 | -9/Materials | Repaired Aluminum Leg 715 | -9/Materials | Core integrity fell below 50% 745 | -9/Materials | Lost 8 parts (1p2n2u3w) 929 | -9/Materials | Discovered new exit (range 15) 1025 | -9/Materials | Entered another Materials area 1025 | -8/Materials | Evolved 2 slots: Propulsion x2 1080 | -8/Materials | Build established: Scavenger-Mutant 1212 | -8/Materials | Destroyed 7 combat bots 1216 | -8/Materials | Lost 4 parts (1p2n1w) 1364 | -8/Materials | Discovered new exit (range 14) 1464 | -8/Materials | Discovered new exit (range 15) 1464 | -8/Materials | Entered Storage 1494 | -8/Storage | Lost 6 parts (1p3n1u1w) 1580 | -8/Storage | Core integrity fell below 50% 1605 | -8/Storage | Core integrity fell below 20% 1624 | -8/Storage | Destroyed by H-55 Commando with Gauss Rifle Last Messages --------------- R-06 Scavenger collects Sml. Storage Unit. Penetrated by Slug. R-06 Scavenger collects Imp. Ion Engine. Penetrated by Slug. Terminal disabled. R-06 Scavenger collects Lgt. Treads. Penetrated by Slug. Particle Gun destroyed. R-06 Scavenger collects Heat Sink. Critical hit (Burn: +37). Hpw. Shotgun destroyed. Penetrated by Slug. R-06 Scavenger collects Heat Sink. Penetrated by Slug. Com. Battery destroyed. U-05 Engineer destroyed. Penetrated by Slug. Hrd. Light Armor Plating destroyed. Acquired Deuterium Engine. Slug penetrates Wall. Map ----- +----------------------------------------------------+ | ?????????????????????????????????????????????????? | | ?????????????????????????????????????????????????? | | ?????????????????????????????????????????????????? | | ?????????????????????????????????????????????????? | | ?????????????????????????????????????????????????? | | ?????????????????????????????????????????????????? | | ?????????????????????????????????????????????????? | | ?????????????????????????????????????????????????? | | ?????????????????????????????????????????????????? | | ?????????????????????????????????????????????????? | | ?????????????????????????????????????????????????? | | ?????????????????????????????????????????????????? | | ?????????????????????????????????????????????????? | | ?????????????????????????????????????????????????? | | ?????????????????????????????????????????????????? | | ?????????????????????????????????????????????????? | | ?????????????????????????????????????????????????? | | ?????????????????????????????????????????????????? | | ?????????????????????????????????????????????????? | | ?????????????????????????????????????????????????? | | ???????????????????##########????????????????????? | | ???????????????????# #######????###?###+### | | ???????????????????# """ # ######T### # | | ???????????????????# """ # *! # | | ???????????????????# * """ + |%! # | | ???????????????????+ *| @ # = % # | | ???????????????????# "# ########## # | | ???????????????????# T#######???####### % ## | | ???????????????????# "#?????????" """?#=! #? | | ???????????????????# ! #????????"" """ #! #? | | ???????????????????###Y######?????# """ """ # #? | | ?????????????????????###??????????# / /? | | ??????????????????????????????????# # # | | ?????????????????????????????????# # # | | ?????????????????????????????????## ?# #? | | ??????????????????????????????????# ?# #? | | ??????????????????????????????????########??# #? | | ????????????????????????????????????????????# #? | | ????????????????????????????????????????????# #? | | ????????????????????????????????????????????# ## | | ????????????????????????????????????????????# "" | | ????????????????????????????????????????????+ Y" | | ????????????????????????????????????????????# "" | | ????????????????????????????????????????????# ## | | ????????????????????????????????????????????# # | | ????????????????????????????????????????????# # | | ????????????????????????????????????????????# # | | ??????????????????????????????????########### # | | ??????????????????????????????????# / / | | ??????????????????????????????????# # # | +----------------------------------------------------+ Best States ------------- Heat Dissipation 31 Energy Generation 21 Energy Capacity 430 Matter Stores 295 Matter Capacity 400 Sight Range 16 Robot Scan Range 14 Terrain Scan Range 16 Terrain Scan Density 85 Armor Coverage 150 Evasion (%) 55 Recoil Reduction 2 Item Schematics ----------------- None Robot Schematics ------------------ None Fabricated ------------ Nothing Repaired ---------- Aluminum Leg | 93% | -9/Materials Studied --------- None Alien Tech Used ----------------- None Achievements -------------- DATA ERROR: Steam Global Achievement% Junior Dev Not Today, Chutes Organ Harvest There's More Where That Came From Challenges ------------ None Game ------ Seed QuantumLegSegregator Manual? 0 Play Time 00:32:01 Cumulative 20.1 hours Start 2025.10.23 @ 21:36:04 End 2025.10.23 @ 22:10:50 Sessions 1 Manual Loads 0 Difficulty Rogue Special Mode None Game No. 25 Rogue 25 Adventurer 0 Explorer 0 Win Type - Total 0 Types 0/0/0/0/0/0/0/0/0/0 Lore% 14 Gallery% 22 Achievement% 12 Wizard Run 0 Options --------- Layout 1 ASCII 0 Keyboard 0 Movement Mouse Keybinds 0 Fullscreen 1 Font 24/Smallcaps Map View 50x35 Zoom Use 0% Tactical HUD 0 Map Filters NONE Filters NONE Steam 1 RUN: cb7ab676-3b7f-4b49-9287-c19bf04a9475